bitfinex/quotes_SOLUSD_20240620
["timestamp","ask_amount","ask_price","bid_price","bid_amount"]
[1718881777210,7.1286,140.28,140.23,7.1311]
[1718881777415,35.6169,140.39,140.26,6.5641]
[1718881777590,35.6169,140.39,140.28,7.1285]
[1718881777591,7.1257,140.34,140.28,7.1285]
[1718881777895,7.126,140.33,140.27,7.1288]
[1718881778094,7.1259,140.34,140.28,7.1284]
[1718881778508,7.1261,140.33,140.28,7.1284]
[1718881778696,17.8111,140.37,140.26,6.5641]
[1718881778697,7.1257,140.34,140.26,6.5641]
[1718881778904,7.1249,140.36,140.27,15.3345]
[1718881779101,7.1227,140.4,140.28,0.34]
[1718881779310,7.1221,140.41,140.35,7.1246]
[1718881779597,23.87,140.46,140.34,17.8134]
[1718881779797,7.1209,140.44,140.38,7.1231]
[1718881780194,42.4553,140.49,140.35,6.0978]
[1718881780520,17.7988,140.46,140.35,6.0978]
[1718881780703,17.7988,140.46,140.37,7.1239]
[1718881780704,7.1211,140.43,140.37,7.1239]
[1718881781595,17.7951,140.49,140.37,15.3345]
[1718881781799,6.0503,140.5,140.37,15.3345]
[1718881782204,23.845,140.5,140.39,7.1228]
[1718881782599,23.845,140.5,140.4,7.1223]
[1718881782803,7.1209,140.44,140.37,22.4583]
[1718881783013,7.1196,140.46,140.39,7.1225]
[1718881783331,17.7921,140.52,140.37,15.3345]
[1718881783503,17.7921,140.52,140.39,17.8068]
[1718881783833,6.6126,140.54,140.38,0.34]
[1718881783834,17.787,140.56,140.42,17.8036]
[1718881784006,7.117,140.51,140.45,7.1196]
[1718881784208,7.1162,140.53,140.42,17.8036]
[1718881784401,17.7856,140.57,140.44,17.8005]
[1718881784716,7.1162,140.53,140.47,7.1186]
[1718881784928,17.7856,140.57,140.44,17.8005]
[1718881785135,17.7816,140.6,140.46,17.7978]
[1718881785299,7.1156,140.54,140.47,7.1188]
[1718881785503,7.1155,140.54,140.47,7.1188]
[1718881785713,7.1164,140.52,140.43,33.3062]
[1718881785935,7.1157,140.54,140.45,17.7997]
[1718881786108,17.7852,140.57,140.48,7.1183]
[1718881786314,17.782,140.6,140.45,17.7997]
[1718881786518,17.7835,140.58,140.46,0.34]
[1718881786732,26.95,140.63,140.43,15.3345]
[1718881787031,7.1167,140.52,140.45,7.1196]
[1718881787228,7.1169,140.51,140.45,7.1196]
[1718881787399,17.7873,140.55,140.44,0.17]
[1718881787601,7.1169,140.51,140.45,7.1195]
[1718881787825,17.7873,140.55,140.43,15.3345]
[1718881788138,17.7841,140.58,140.44,0.34]
[1718881788426,17.7841,140.58,140.46,17.7985]
[1718881788731,7.1145,140.56,140.5,7.1174]
[1718881788900,17.7808,140.61,140.48,17.7956]
[1718881789100,26.95,140.63,140.48,17.7956]
[1718881789101,7.4457654,140.64,140.53,3.911]
[1718881789303,17.7985,140.68,140.53,3.911]
[1718881789304,17.7985,140.68,140.54,27.12]
[1718881789506,17.7697,140.69,140.55,0.34]
[1718881789805,7.1101,140.65,140.59,7.1127]
[1718881790011,17.7722,140.67,140.53,3.911]
[1718881790306,33.3549,140.73,140.53,3.911]
[1718881790514,7.1103,140.64,140.58,7.1129]
[1718881790841,17.7681,140.71,140.6,7.1119]
[1718881791145,17.7676,140.71,140.55,0.17]
[1718881791432,7.1079,140.69,140.62,7.1113]
[1718881791636,7.1064,140.72,140.65,7.1093]
[1718881791939,7.1068,140.71,140.65,7.1097]
[1718881792231,7.1068,140.71,140.64,6.1156]
[1718881792530,7.1059,140.73,140.66,7.1092]
[1718881792704,7.1065,140.72,140.67,2.57476446]
[1718881792919,7.1065,140.72,140.66,7.1092]
[1718881792920,17.7601,140.77,140.64,23.8913]
[1718881793114,17.7601,140.77,140.68,7.1082]
[1718881793115,7.1056,140.74,140.68,7.1082]
[1718881793343,7.1046,140.76,140.65,0.34]
[1718881793545,17.7553,140.81,140.66,17.9426]
[1718881793762,17.7573,140.79,140.67,0.34]
[1718881794117,17.7599,140.77,140.64,6.1156]
[1718881794348,35.5135,140.8,140.64,6.1156]
[1718881794548,7.1067,140.72,140.64,6.1156]
[1718881794746,17.7609,140.76,140.64,6.1156]
[1718881795044,7.1059,140.73,140.67,7.1086]
[1718881795344,35.5115,140.8,140.64,6.1156]
[1718881795518,20.0,140.79,140.64,6.1156]
[1718881795724,7.1064,140.72,140.66,7.1092]
[1718881795918,17.7601,140.77,140.66,7.1092]
[1718881796138,17.7626,140.75,140.65,15.1105]
[1718881796518,20.0,140.79,140.67,7.1084]
[1718881796519,7.1056,140.74,140.67,7.1084]
[1718881796750,17.7552,140.81,140.66,17.7727]
[1718881796925,20.0,140.8,140.67,0.17]
[1718881797127,7.1049,140.75,140.68,7.1079]
[1718881797426,7.1049,140.75,140.65,15.2805]
[1718881797427,17.76,140.77,140.65,15.1105]
[1718881797623,35.5024,140.84,140.67,6.2141]
[1718881797947,35.5024,140.84,140.72,7.1062]
[1718881797948,20.0,140.83,140.72,7.1062]
[1718881798153,20.0,140.83,140.68,0.17]
[1718881798457,26.95,140.84,140.68,7.1079]
[1718881798626,17.7598,140.77,140.67,13.3228]
[1718881798828,35.5114,140.8,140.67,13.3228]
[1718881798829,35.5114,140.8,140.67,6.2141]
[1718881799147,17.7592,140.78,140.67,6.2141]
[1718881799350,7.1061,140.73,140.67,13.3227]
[1718881799529,20.0,140.77,140.67,6.2141]
[1718881799727,7.1049,140.75,140.69,7.1077]
[1718881799959,7.1056,140.74,140.68,7.108]
[1718881800126,7.1058,140.73,140.67,13.3227]
[1718881800342,62.4614,140.8,140.64,15.1105]
[1718881800544,17.7643,140.74,140.62,6.1413]
[1718881800754,7.1054,140.74,140.68,7.1082]
[1718881801169,17.7605,140.77,140.69,7.1076]
[1718881801339,35.5118,140.8,140.63,23.3394]
[1718881801554,7.1053,140.74,140.68,7.1082]
[1718881801741,7.1051,140.75,140.69,7.1075]
[1718881801949,7.1044,140.76,140.7,7.1072]
[1718881802249,17.7587,140.78,140.69,17.7694]
[1718881802250,7.1036,140.78,140.69,17.7694]
[1718881802448,7.1049,140.75,140.69,7.1075]
[1718881802653,7.1049,140.75,140.64,0.17]
[1718881802654,17.7572,140.79,140.66,17.773]
[1718881802860,17.7572,140.79,140.64,0.17]
[1718881802861,7.1036,140.78,140.72,7.1062]
[1718881803068,7.1039,140.77,140.72,6.4016]
[1718881803249,7.1034,140.78,140.72,13.5078]
[1718881803452,7.1044,140.76,140.72,6.4016]
[1718881803964,53.2541,140.84,140.72,6.4016]
[1718881804138,7.1031,140.79,140.73,7.1056]
[1718881804336,35.5026,140.84,140.72,6.4016]
[1718881804751,7.1029,140.79,140.72,6.4016]
[1718881804955,17.7518,140.84,140.72,14.633]
[1718881805144,7.1024,140.8,140.74,7.1052]
[1718881805361,7.1029,140.79,140.73,7.1056]
[1718881805564,7.1022,140.81,140.72,14.633]
[1718881805745,7.1022,140.8,140.72,14.633]
[1718881805944,7.1033,140.78,140.72,14.633]
[1718881806459,7.1041,140.77,140.72,14.633]
[1718881806775,7.1047,140.76,140.72,6.4016]
[1718881806958,17.7543,140.82,140.72,6.4016]
[1718881807150,17.7543,140.82,140.73,7.1053]
[1718881807350,7.1033,140.78,140.72,13.5077]
[1718881807550,17.7559,140.8,140.72,6.4016]
[1718881807762,17.7559,140.8,140.72,13.5074]
[1718881808076,7.1039,140.77,140.72,6.4016]
[1718881808255,17.753,140.83,140.72,6.4016]
[1718881808456,7.1034,140.78,140.73,7.1057]
[1718881808661,17.7572,140.79,140.72,6.4016]
[1718881808875,7.1046,140.76,140.72,6.4016]
[1718881809976,7.1046,140.76,140.52,35.98591565]
[1718881809977,7.1086,140.68,140.62,7.1109]
[1718881810177,92.47,140.75,140.56,6.2122]
[1718881810342,7.1119,140.61,140.56,6.2122]
[1718881810673,7.1132,140.59,140.54,16.4628]
[1718881810846,7.1144,140.56,140.51,6.0079]
[1718881811041,7.1146,140.56,140.51,6.0079]
[1718881811240,7.1146,140.56,140.47,8.2314]
[1718881811241,7.1146,140.56,140.49,7.1177]
[1718881811474,17.7798,140.61,140.52,7.1162]
[1718881811786,0.34,140.62,140.47,8.2314]
[1718881812073,17.9514,140.6,140.49,7.1174]
[1718881812280,7.1153,140.55,140.48,7.1183]
[1718881812569,7.1153,140.55,140.48,7.1179]
[1718881812789,7.1159,140.53,140.46,7.119]
[1718881813069,7.1159,140.53,140.45,22.4707]
[1718881813070,7.1165,140.52,140.45,13.1278]
[1718881813275,7.1165,140.52,140.42,7.121]
[1718881813276,7.118,140.49,140.42,7.121]
[1718881813448,0.17,140.51,140.41,17.7841]
[1718881813653,7.1179,140.5,140.4,8.2314]
[1718881813885,7.1183,140.49,140.39,6.236]
[1718881814054,0.17,140.58,140.43,17.8018]
[1718881814247,0.17,140.58,140.45,7.1194]
[1718881814248,7.1161,140.53,140.45,7.1194]
[1718881814455,7.1159,140.53,140.45,7.1195]
[1718881814755,7.1178,140.5,140.43,7.1206]
[1718881814949,17.7892,140.54,140.4,17.8054]
[1718881815152,7.1169,140.51,140.44,7.1203]
[1718881815375,17.7919,140.52,140.39,6.236]
[1718881815562,0.17,140.5,140.39,6.236]
[1718881815757,7.1201,140.45,140.36,35.5942]
[1718881815957,7.1195,140.46,140.36,35.5942]
[1718881816155,7.119,140.47,140.4,7.1223]
[1718881816348,0.17,140.49,140.42,7.1214]
[1718881816349,7.1184,140.49,140.42,7.1214]
[1718881816554,50.9614,140.54,140.34,57.3569]
[1718881816775,17.7918,140.52,140.35,2.53684057]
[1718881816961,17.7918,140.52,140.41,7.1219]
[1718881817148,17.7941,140.5,140.4,7.1224]
[1718881817352,17.7941,140.5,140.35,2.53684057]
[1718881817353,20.0,140.49,140.38,7.123]
[1718881817677,37.7953,140.49,140.36,17.964]
[1718881817977,7.1194,140.46,140.39,7.1229]
[1718881818181,7.1199,140.45,140.39,7.1229]
[1718881818683,0.34,140.48,140.35,17.8123]
[1718881818684,0.34,140.48,140.38,7.1233]
[1718881818853,7.1211,140.43,140.34,6.3355]
[1718881819163,17.7976,140.47,140.38,7.1234]
[1718881819475,20.34,140.49,140.36,17.8108]
[1718881819476,20.17,140.49,140.36,17.8108]
[1718881819649,7.1195,140.46,140.4,7.1224]
[1718881819850,20.0,140.49,140.36,17.8108]
[1718881819851,7.1205,140.44,140.38,7.1235]
[1718881820077,7.1213,140.43,140.37,7.1239]
[1718881820262,7.1221,140.41,140.34,13.4605]
[1718881820471,7.1215,140.42,140.33,17.8144]
[1718881820778,7.1211,140.43,140.33,17.8144]
[1718881820979,7.1205,140.44,140.33,17.8144]
[1718881821175,20.0,140.49,140.3,17.7988]
[1718881821176,26.85,140.63,140.31,9.979991]
[1718881821380,7.1193,140.47,140.41,7.1215]
[1718881821580,7.1195,140.46,140.4,7.1224]
[1718881821755,35.5889,140.5,140.35,17.8115]
[1718881821959,7.1215,140.42,140.36,7.1243]
[1718881822157,17.7988,140.46,140.32,35.6306]
[1718881822352,17.7988,140.46,140.37,7.1239]
[1718881822353,7.1211,140.43,140.37,7.1239]
[1718881822755,17.8012,140.44,140.35,7.1246]
[1718881822967,22.1679,140.44,140.3,17.7988]
[1718881823169,22.1679,140.44,140.29,6.3388]
[1718881823170,17.8074,140.4,140.29,6.3388]
[1718881823493,7.1248,140.36,140.3,7.1274]
[1718881823676,17.8074,140.4,140.29,6.3388]
[1718881824204,7.1235,140.38,140.32,7.1262]
[1718881824396,17.8074,140.4,140.29,6.3388]
[1718881824599,7.1236,140.38,140.32,7.1261]
[1718881824813,0.34,140.43,140.31,17.8175]
[1718881824992,7.1232,140.39,140.34,7.1255]
[1718881825172,17.8038,140.42,140.31,17.8175]
[1718881825504,17.8063,140.4,140.29,6.3388]
[1718881825683,7.1246,140.36,140.3,7.1272]
[1718881825889,17.8063,140.4,140.28,17.8203]
[1718881826077,17.8036,140.43,140.33,7.126]
[1718881826276,7.1233,140.39,140.33,7.126]
[1718881826810,7.1257,140.34,140.24,6.5722]
[1718881826999,7.1251,140.35,140.29,7.128]
[1718881827180,7.1246,140.36,140.3,7.1274]
[1718881827378,7.1257,140.34,140.28,7.1281]
[1718881827589,0.17,140.42,140.24,42.2252]
[1718881827782,0.17,140.42,140.31,7.1266]
[1718881827985,0.17,140.39,140.28,7.1281]
[1718881828280,0.17,140.39,140.25,17.8241]
[1718881828281,7.125,140.35,140.29,7.1277]
[1718881828505,17.8116,140.36,140.22,54.622047]
[1718881828705,17.8144,140.34,140.24,7.1306]
[1718881828912,7.1304,140.25,140.19,13.2759]
[1718881829096,17.8215,140.28,140.2,7.1325]
[1718881829278,21.5373,140.33,140.25,7.1301]
[1718881829499,21.5373,140.33,140.2,17.8311]
[1718881829805,21.5373,140.33,140.22,17.829]
[1718881830003,7.1287,140.28,140.22,7.1313]
[1718881830304,21.5373,140.33,140.21,17.83]
[1718881830507,7.1288,140.28,140.19,6.1429]
[1718881830683,7.1288,140.28,140.22,7.1314]
[1718881830884,7.128,140.3,140.24,7.1305]
[1718881831077,21.70692939,140.87,140.24,7.1305]
[1718881831078,7.1251,140.35,140.29,7.128]
[1718881831283,7.1243,140.37,140.22,35.6578]
[1718881831483,15.4507,140.39,140.23,20.0]
[1718881831897,7.1267,140.32,140.26,7.1295]
[1718881832096,17.8132,140.35,140.19,32.9929]
[1718881832285,15.4507,140.39,140.21,17.8295]
[1718881832495,17.8157,140.33,140.21,17.8295]
[1718881832797,17.8121,140.36,140.21,17.8295]
[1718881833008,15.4507,140.39,140.21,35.6586]
[1718881833208,7.1246,140.36,140.3,7.1272]
[1718881833382,7.125,140.36,140.29,7.1276]
[1718881833583,7.1235,140.38,140.21,35.6586]
[1718881833813,15.4507,140.39,140.28,17.8211]
[1718881834112,15.4507,140.39,140.24,17.8265]
[1718881834292,7.1258,140.34,140.28,7.128]
[1718881834604,15.4507,140.39,140.22,22.53919251]
[1718881834809,15.4507,140.39,140.02,358.6]
[1718881834810,17.8154,140.33,140.14,62.5279]
[1718881835011,7.1289,140.28,140.22,7.1312]
[1718881835182,17.8164,140.32,140.22,7.1316]
[1718881835379,7.1291,140.27,140.21,7.1317]
[1718881835605,7.1286,140.28,140.22,7.1314]
[1718881835798,0.17,140.31,140.22,7.1314]
[1718881835995,6.4214,140.33,140.17,35.6688]
[1718881836204,7.1268,140.32,140.26,7.1294]
[1718881836399,6.6188,140.37,140.28,7.1282]
[1718881836591,6.6188,140.37,140.17,99.9588]
[1718881836592,7.1254,140.35,140.29,7.1279]
[1718881836790,6.6188,140.37,140.24,17.8265]
[1718881836985,7.1257,140.34,140.28,7.1282]
[1718881837187,7.1257,140.34,140.24,17.8265]
[1718881837188,7.1243,140.37,140.31,7.1267]
[1718881837412,7.1236,140.38,140.32,7.1264]
[1718881837588,6.6188,140.42,140.28,17.8212]
[1718881837589,7.1243,140.37,140.31,7.1269]
[1718881838003,7.1236,140.38,140.32,7.1262]
[1718881838207,7.1223,140.41,140.35,7.1249]
[1718881838533,7.1214,140.42,140.36,7.1244]
[1718881838893,16.1254,140.5,140.35,0.34]
[1718881839128,7.1181,140.49,140.43,7.1208]
[1718881839327,16.1254,140.5,140.39,17.807]
[1718881839500,16.1254,140.5,140.43,7.1205]
[1718881839501,7.118,140.49,140.43,7.1205]
[1718881839701,16.1254,140.5,140.39,0.17]
[1718881840025,16.1254,140.5,140.44,7.1203]
[1718881840215,16.1254,140.5,140.41,7.1216]
[1718881840416,16.1254,140.5,140.44,7.1203]
[1718881840607,16.1254,140.5,140.39,17.8072]
[1718881840803,7.1184,140.49,140.42,7.1214]
[1718881841006,7.1189,140.48,140.41,7.1218]
[1718881841414,7.1189,140.48,140.42,7.1213]
[1718881841929,7.1194,140.46,140.4,7.1224]
[1718881842134,7.1194,140.46,140.39,7.1228]
[1718881842320,7.1205,140.44,140.38,7.1232]
[1718881842518,17.7967,140.48,140.34,26.2118]
[1718881842718,16.1254,140.5,140.4,17.8058]
[1718881843025,23.243,140.5,140.44,7.1203]
[1718881843327,16.1254,140.5,140.36,35.6202]
[1718881843501,23.2432,140.5,140.44,7.1203]
[1718881843900,7.1179,140.49,140.43,7.1208]
[1718881844125,7.1198,140.46,140.4,7.1223]
[1718881844327,17.7967,140.48,140.35,17.8119]
[1718881844535,7.1203,140.45,140.39,7.1226]
[1718881844701,16.1254,140.5,140.37,17.8099]
[1718881845128,0.17,140.49,140.37,17.8099]
[1718881845322,20.0,140.49,140.39,17.8072]
[1718881845525,36.1254,140.5,140.39,17.8072]
[1718881845728,17.7962,140.48,140.35,17.8117]
[1718881845936,17.7962,140.48,140.4,7.1221]
[1718881846113,6.6433,140.55,140.43,17.8019]
[1718881846314,6.6433,140.55,140.47,7.1188]
[1718881846624,6.6433,140.55,140.43,17.8019]
[1718881846625,7.1167,140.52,140.46,7.1193]
[1718881847017,24.4307,140.55,140.47,7.1187]
[1718881847219,6.6433,140.55,140.43,17.8019]
[1718881847937,7.1164,140.52,140.46,7.1191]
[1718881848111,7.1161,140.53,140.47,7.1188]
[1718881848516,7.1164,140.52,140.47,7.1187]
[1718881848717,7.1164,140.52,140.46,7.1192]
[1718881849248,7.1159,140.53,140.43,17.8019]
[1718881849414,7.1156,140.54,140.48,7.1181]
[1718881849750,7.116,140.53,140.47,7.1187]
[1718881850034,7.116,140.53,140.42,0.51]
[1718881850035,7.1174,140.5,140.42,18.1425]
[1718881850212,17.7886,140.54,140.42,17.8025]
[1718881850411,6.6433,140.55,140.44,17.8006]
[1718881850626,6.6433,140.55,140.47,7.1187]
[1718881850839,7.1165,140.52,140.47,7.1187]
[1718881851009,24.4306,140.55,140.46,7.119]
[1718881851410,7.1165,140.52,140.46,7.119]
[1718881851639,24.4306,140.55,140.41,17.8039]
[1718881851831,24.4306,140.55,140.43,17.8024]
[1718881852150,24.4306,140.55,140.42,0.34]
[1718881852151,6.6433,140.55,140.42,0.34]
[1718881852318,6.6433,140.55,140.42,0.17]
[1718881852524,7.1169,140.52,140.46,7.1193]
[1718881852724,7.1169,140.51,140.46,7.1193]
[1718881853224,7.1167,140.52,140.42,0.17]
[1718881853539,7.116,140.53,140.48,7.118]
[1718881853746,7.116,140.53,140.47,7.1186]
[1718881853919,7.1157,140.54,140.42,0.34]
[1718881854119,6.6433,140.55,140.44,0.17]
[1718881854319,7.1161,140.53,140.44,0.17]
[1718881854633,7.116,140.53,140.47,7.1189]
[1718881854844,7.1161,140.53,140.47,7.1189]
[1718881855033,7.1166,140.52,140.46,7.1192]
[1718881855233,7.116,140.53,140.47,7.1188]
[1718881855424,7.1155,140.54,140.48,7.1183]
[1718881855737,7.1155,140.54,140.44,17.801]
[1718881855928,23.7741,140.56,140.46,17.7985]
[1718881856123,23.7741,140.56,140.46,7.1191]
[1718881856124,7.1168,140.52,140.46,7.1191]
[1718881856329,7.1159,140.53,140.47,7.1185]
[1718881856543,23.7741,140.56,140.44,17.8011]
[1718881856544,7.1154,140.54,140.44,17.8011]
[1718881856748,7.115,140.55,140.49,7.1178]
[1718881856933,7.115,140.55,140.49,7.1179]
[1718881857237,16.6231,140.56,140.46,0.17]
[1718881857416,7.1134,140.58,140.52,7.1162]
[1718881857618,6.3937,140.59,140.54,7.1153]
[1718881857817,6.3937,140.59,140.52,7.1163]
[1718881857818,7.1135,140.58,140.52,7.1163]
[1718881858040,7.1135,140.58,140.5,17.7932]
[1718881858339,7.1139,140.57,140.51,7.1168]
[1718881858546,6.3937,140.59,140.46,0.34]
[1718881858739,7.1145,140.56,140.5,7.1171]
[1718881858944,6.3937,140.59,140.47,0.34]
[1718881859152,6.3937,140.59,140.51,17.7916]
[1718881859351,16.5863,140.61,140.57,7.1135]
[1718881859524,7.1113,140.63,140.57,7.1137]
[1718881860021,7.1114,140.62,140.57,7.1137]
[1718881860221,7.1124,140.6,140.55,7.1144]
[1718881860637,7.112,140.61,140.55,7.1144]
[1718881861361,13.661,140.64,140.58,7.113]
[1718881861564,7.1109,140.63,140.57,7.1137]
[1718881861732,6.5502,140.64,140.59,7.1128]
[1718881861933,13.7012,140.64,140.52,0.17]
[1718881862250,7.1136,140.58,140.53,7.1158]
[1718881862449,13.7012,140.64,140.5,17.775]
[1718881862634,13.7012,140.64,140.51,20.0]
[1718881862835,7.151,140.64,140.51,41.5]
[1718881863046,7.151,140.64,140.62,7.1112]
[1718881863228,7.151,140.64,140.58,17.7826]
[1718881863427,7.151,140.64,140.62,7.111]
[1718881863633,7.151,140.64,140.63,7.1108]
[1718881863953,15.9116,140.71,140.61,17.7794]
[1718881864194,15.9116,140.71,140.63,17.7768]
[1718881864656,15.9116,140.71,140.59,17.7821]
[1718881864826,7.1078,140.7,140.65,7.1097]
[1718881865149,7.1079,140.69,140.63,7.1108]
[1718881865357,15.9116,140.71,140.63,7.1108]
[1718881865527,33.6792,140.71,140.59,17.7809]
[1718881865847,7.1074,140.7,140.6,0.17]
[1718881866032,7.108,140.69,140.63,7.1106]
[1718881866550,7.1073,140.7,140.61,17.7795]
[1718881866753,15.9116,140.71,140.65,7.1094]
[1718881866951,15.9116,140.71,140.63,7.1106]
[1718881867151,15.9116,140.71,140.59,0.34]
[1718881867332,7.1074,140.7,140.64,7.1102]
[1718881867528,15.9116,140.71,140.64,7.1102]
[1718881867754,15.9116,140.71,140.6,17.9507]
[1718881867927,17.7683,140.7,140.61,7.1116]
[1718881868133,7.1087,140.68,140.59,17.782]
[1718881868351,15.9116,140.71,140.57,35.5673]
[1718881868551,7.1099,140.65,140.55,6.24]
[1718881868752,7.1095,140.66,140.6,7.1122]
[1718881868939,15.9116,140.71,140.55,6.24]
[1718881868940,7.1084,140.68,140.58,17.783]
[1718881869141,15.9116,140.71,140.55,6.24]
[1718881869542,15.9116,140.71,140.67,7.1085]
[1718881869736,15.9116,140.71,140.61,35.5587]
[1718881870053,15.9116,140.71,140.66,7.109]
[1718881870265,15.9116,140.71,140.62,0.51]
[1718881870266,17.7632,140.75,140.63,17.7769]
[1718881870439,7.1058,140.73,140.67,7.1084]
[1718881870851,7.1078,140.69,140.62,0.51]
[1718881871047,17.7644,140.74,140.62,0.17]
[1718881871259,23.135,140.76,140.61,0.51]
[1718881871471,23.135,140.76,140.63,7.1104]
[1718881871472,7.1079,140.69,140.63,7.1104]
[1718881871693,7.1079,140.69,140.63,7.1107]
[1718881871851,7.1074,140.7,140.64,7.1102]
[1718881872054,40.8968,140.76,140.63,17.7769]
[1718881872372,37.7631,140.75,140.66,7.1091]
[1718881872551,0.17,140.74,140.65,7.1096]
[1718881872749,7.1074,140.7,140.65,7.1097]
[1718881872964,7.1074,140.7,140.6,35.5603]
[1718881873270,17.7648,140.73,140.61,0.34]
[1718881873573,7.1069,140.71,140.65,7.1094]
[1718881873749,20.0,140.75,140.6,17.7808]
[1718881874073,7.151,140.73,140.56,43.8012]
[1718881874366,14.2618,140.64,140.55,24.0264]
[1718881874559,7.1111,140.63,140.58,7.1132]
[1718881874863,7.151,140.64,140.55,17.7864]
[1718881875036,7.151,140.64,140.57,7.1137]
[1718881875238,7.1124,140.6,140.52,20.32357152]
[1718881875461,7.1116,140.62,140.56,7.1142]
[1718881875663,7.1115,140.62,140.56,7.1142]
[1718881875865,17.7801,140.61,140.49,17.7937]
[1718881876066,7.151,140.64,140.5,2.5341322]
[1718881876269,7.151,140.65,140.56,17.7859]
[1718881876470,7.151,140.64,140.56,17.7859]
[1718881876771,7.151,140.64,140.52,35.5801]
[1718881876959,14.2614,140.64,140.55,17.7862]
[1718881877145,14.2614,140.64,140.58,7.1132]
[1718881877345,14.2614,140.64,140.55,17.7862]
[1718881877346,7.151,140.64,140.52,53.37]
[1718881877542,21.7183,140.67,140.5,2.5341322]
[1718881877543,7.151,140.66,140.5,2.5341322]
[1718881877759,21.7183,140.67,140.49,20.0]
[1718881877760,7.11,140.65,140.59,7.1125]
[1718881877973,28.8275,140.67,140.61,7.1115]
[1718881878176,21.7183,140.67,140.6,7.112]
[1718881878475,21.7183,140.67,140.58,17.7831]
[1718881878645,21.7183,140.67,140.62,7.1113]
[1718881878845,28.8272,140.67,140.61,7.1116]
[1718881879071,21.7183,140.67,140.62,7.1112]
[1718881879254,28.8271,140.67,140.62,7.1112]
[1718881879454,21.7183,140.67,140.58,17.7831]
[1718881879763,21.7183,140.67,140.61,7.1118]
[1718881880067,21.7183,140.67,140.57,17.7844]
[1718881880363,7.1094,140.66,140.57,35.5675]
[1718881880567,21.7183,140.67,140.59,17.7819]
[1718881880754,21.7183,140.67,140.61,17.7794]
[1718881880953,6.4864,140.71,140.61,17.7794]
[1718881881470,6.4864,140.71,140.63,17.7771]
[1718881881652,6.4864,140.71,140.64,0.34]
[1718881881963,15.8703,140.72,140.65,17.7744]
[1718881882169,6.586,140.76,140.66,0.34]
[1718881882368,7.1051,140.75,140.69,7.1077]
[1718881882570,6.586,140.76,140.67,17.772]
[1718881882777,6.586,140.76,140.71,7.1066]
[1718881882946,6.586,140.76,140.7,7.1071]
[1718881883147,13.6903,140.76,140.7,7.1071]
[1718881883349,13.6902,140.76,140.7,7.1071]
[1718881883650,13.6902,140.76,140.71,7.1068]
[1718881883869,15.8135,140.77,140.67,0.17]
[1718881884170,13.3914,140.8,140.74,7.1051]
[1718881884380,6.2888,140.8,140.67,18.1109]
[1718881884553,7.1058,140.73,140.67,7.1087]
[1718881884754,7.1063,140.72,140.66,7.1088]
[1718881884954,7.1073,140.71,140.65,7.1096]
[1718881885275,16.4501,140.72,140.63,17.7759]
[1718881885450,16.4501,140.72,140.67,7.1084]
[1718881885649,16.4501,140.72,140.66,7.1092]
[1718881885883,23.5566,140.72,140.66,7.1092]
[1718881886049,7.1069,140.71,140.65,7.1097]